[Event "Klubbmästerskap 2025 Tisdag"]
[Site "Linköping, Sweden"]
[Date "2025.04.08"]
[Round "9.1"]
[White "Rosenbecker, Daniel"]
[Black "Malm, Simon 1995"]
[Result "1/2-1/2"]
[TimeControl "90 min + 30 sec/move"]
[WhiteTitle "CM"]
[WhiteElo "2110"]
[BlackElo "1976"]

1. b3 {[%clk 01:30:14]} {[%emt 00:00:45]} d5 {[%clk 01:28:44]} {[%emt
00:02:16]} 2. Bb2 {[%clk 01:30:38]} {[%emt 00:00:06]} c5 {[%clk 01:27:22]}
{[%emt 00:01:52]} 3. e3 {[%clk 01:29:45]} {[%emt 00:01:23]} Nc6 {[%clk
01:27:28]} {[%emt 00:00:25]} 4. Nf3 {[%clk 01:30:03]} {[%emt 00:00:12]} Bg4
{[%clk 01:25:35]} {[%emt 00:02:22]} 5. Be2 {[%clk 01:26:03]} {[%emt 00:04:30]}
Nf6 {[%clk 01:25:51]} {[%emt 00:00:14]} 6. c4 {[%clk 01:19:39]} {[%emt
00:06:54]} e6 {[%clk 01:18:56]} {[%emt 00:07:23]} 7. O-O {[%clk 01:16:41]}
{[%emt 00:03:28]} dxc4 {[%clk 01:15:57]} {[%emt 00:03:30]} 8. bxc4 {[%clk
01:16:49]} {[%emt 00:00:22]} Be7 {[%clk 01:15:59]} {[%emt 00:00:29]} 9. d4
{[%clk 00:42:38]} {[%emt 00:34:41]} O-O {[%clk 01:14:05]} {[%emt 00:02:23]} 10.
Nbd2 {[%clk 00:33:15]} {[%emt 00:09:53]} h6 {[%clk 01:13:04]} {[%emt 00:01:31]}
11. Ne5 {[%clk 00:32:12]} {[%emt 00:01:34]} Bxe2 {[%clk 01:10:42]} {[%emt
00:02:52]} 12. Qxe2 {[%clk 00:32:34]} {[%emt 00:00:08]} Qc7 {[%clk 01:06:36]}
{[%emt 00:04:36]} 13. Ndf3 {[%clk 00:26:46]} {[%emt 00:06:17]} Nd7 {[%clk
01:00:38]} {[%emt 00:06:29]} 14. Nxd7 {[%clk 00:25:12]} {[%emt 00:02:05]} Qxd7
{[%clk 01:01:06]} {[%emt 00:00:02]} 15. Rfd1 {[%clk 00:25:08]} {[%emt
00:00:33]} cxd4 {[%clk 00:58:03]} {[%emt 00:03:32]} 16. exd4 {[%clk 00:24:56]}
{[%emt 00:00:43]} Rfe8 {[%clk 00:47:39]} {[%emt 00:10:54]} 17. d5 {[%clk
00:14:35]} {[%emt 00:10:52]} exd5 {[%clk 00:47:38]} {[%emt 00:00:31]} 18. cxd5
{[%clk 00:14:55]} {[%emt 00:00:10]} Nb4 {[%clk 00:46:04]} {[%emt 00:02:04]} 19.
Qd2 {[%clk 00:14:19]} {[%emt 00:01:05]} Bd6 {[%clk 00:39:52]} {[%emt 00:06:42]}
20. a3 {[%clk 00:06:19]} {[%emt 00:08:31]} Na6 {[%clk 00:40:03]} {[%emt
00:00:19]} 21. Qd4 {[%clk 00:04:34]} {[%emt 00:02:15]} f5 {[%clk 00:40:22]}
{[%emt 00:00:11]} 22. Re1 {[%clk 00:02:39]} {[%emt 00:02:26]} Nc5 {[%clk
00:40:10]} {[%emt 00:00:41]} 23. Rad1 {[%clk 00:00:39]} {[%emt 00:02:30]} Ne4
{[%clk 00:37:05]} {[%emt 00:03:34]} 24. Qd3 {[%clk 00:01:04]} {[%emt 00:00:06]}
Bc5 {[%clk 00:36:29]} {[%emt 00:01:06]} 25. Re2 {[%clk 00:01:30]} {[%emt
00:00:03]} Rad8 {[%clk 00:35:46]} {[%emt 00:01:14]} 26. Ne5 {[%clk 00:00:43]}
{[%emt 00:01:17]} Qc7 {[%clk 00:34:40]} {[%emt 00:01:36]} 27. Nc4 {[%emt
00:00:17]} b5 {[%clk 00:30:26]} {[%emt 00:04:42]} 28. Nd2 {[%clk 00:01:24]}
{[%emt 00:00:04]} Qf7 {[%clk 00:26:48]} {[%emt 00:04:08]} 29. Nxe4 {[%clk
00:01:23]} {[%emt 00:00:31]} fxe4 {[%clk 00:26:39]} {[%emt 00:00:38]} 30. Qxb5
{[%clk 00:01:38]} {[%emt 00:00:15]} Bd6 {[%clk 00:23:05]} {[%emt 00:04:04]} 31.
Qc4 {[%clk 00:02:03]} {[%emt 00:00:05]} Rc8 {[%clk 00:22:59]} {[%emt 00:00:35]}
32. Qd4 {[%clk 00:02:29]} {[%emt 00:00:04]} Re7 {[%clk 00:22:10]} {[%emt
00:01:19]} 33. g3 {[%clk 00:01:46]} {[%emt 00:01:13]} Rb8 {[%clk 00:18:35]}
{[%emt 00:04:05]} 34. Rde1 {[%clk 00:01:43]} {[%emt 00:00:34]} Rb5 {[%clk
00:16:15]} {[%emt 00:02:49]} 35. Rxe4 {[%clk 00:00:56]} {[%emt 00:01:17]} Rxe4
{[%clk 00:14:26]} {[%emt 00:02:19]} 36. Rxe4 {[%clk 00:01:05]} {[%emt
00:00:21]} Rxd5 {[%clk 00:14:54]} {[%emt 00:00:02]} 37. Re8+ {[%clk 00:00:42]}
{[%emt 00:00:52]} Bf8 {[%clk 00:14:33]} {[%emt 00:00:51]} 38. Qe4 {[%clk
00:00:37]} {[%emt 00:00:35]} Rd2 {[%clk 00:12:21]} {[%emt 00:02:42]} 39. Bd4
{[%clk 00:00:42]} {[%emt 00:00:26]} Rxd4 {[%clk 00:11:34]} {[%emt 00:01:17]} 40.
Rxf8+ {[%clk 00:01:06]} {[%emt 00:00:06]} Qxf8 {[%clk 00:11:58]} {[%emt
00:00:07]} 41. Qxd4 {[%clk 00:01:31]} {[%emt 00:00:04]} Qxa3 {[%clk 00:12:22]}
{[%emt 00:00:06]} 42. Qd5+ {[%clk 00:01:58]} {[%emt 00:00:04]} 1/2-1/2

[Event "Klubbmästerskap 2025 Tisdag"]
[Site "Linköping, Sweden"]
[Date "2025.04.08"]
[Round "9.2"]
[White "Grundel, Sam"]
[Black "Thyberg, André"]
[Result "1-0"]
[TimeControl "90 min + 30 sec/move"]
[WhiteElo "2019"]
[BlackElo "1961"]

1. e4 {[%clk 01:30:55]} {[%emt 00:00:04]} e5 {[%clk 01:30:45]} {[%emt
00:00:15]} 2. Nf3 {[%clk 01:31:13]} {[%emt 00:00:13]} Nc6 {[%clk 01:31:05]}
{[%emt 00:00:10]} 3. Bc4 {[%clk 01:31:31]} {[%emt 00:00:11]} Bc5 {[%clk
01:31:24]} {[%emt 00:00:11]} 4. c3 {[%clk 01:31:50]} {[%emt 00:00:12]} Nf6
{[%clk 01:31:40]} {[%emt 00:00:14]} 5. d3 {[%clk 01:32:08]} {[%emt 00:00:11]}
a6 {[%clk 01:31:52]} {[%emt 00:00:18]} 6. Bb3 {[%clk 01:32:15]} {[%emt
00:00:23]} h6 {[%clk 01:30:37]} {[%emt 00:01:45]} 7. O-O {[%clk 01:32:06]}
{[%emt 00:00:39]} Ba7 {[%clk 01:29:31]} {[%emt 00:01:36]} 8. Re1 {[%clk
01:31:24]} {[%emt 00:01:11]} O-O {[%clk 01:28:52]} {[%emt 00:01:10]} 9. h3
{[%clk 01:28:31]} {[%emt 00:03:23]} d6 {[%clk 01:29:14]} {[%emt 00:00:09]} 10.
Nbd2 {[%clk 01:28:51]} {[%emt 00:00:09]} Be6 {[%clk 01:22:43]} {[%emt
00:07:01]} 11. Bc2 {[%clk 01:26:48]} {[%emt 00:02:33]} Nh7 {[%clk 01:16:29]}
{[%emt 00:06:44]} 12. Nf1 {[%clk 01:14:41]} {[%emt 00:12:37]} Ne7 {[%clk
00:58:57]} {[%emt 00:18:02]} 13. d4 {[%clk 01:04:56]} {[%emt 00:10:16]} Ng6
{[%clk 00:54:43]} {[%emt 00:04:43]} 14. Ng3 {[%clk 01:00:01]} {[%emt 00:05:26]}
Nh4 {[%clk 00:53:07]} {[%emt 00:02:06]} 15. Be3 {[%clk 00:37:55]} {[%emt
00:22:35]} Nxf3+ {[%clk 00:43:45]} {[%emt 00:09:51]} 16. Qxf3 {[%clk 00:37:45]}
{[%emt 00:00:40]} Ng5 {[%clk 00:44:04]} {[%emt 00:00:12]} 17. Qh5 {[%clk
00:31:27]} {[%emt 00:06:48]} f6 {[%clk 00:30:42]} {[%emt 00:13:52]} 18. h4
{[%clk 00:21:51]} {[%emt 00:10:05]} Nh7 {[%clk 00:26:07]} {[%emt 00:05:05]} 19.
Nf5 {[%clk 00:13:54]} {[%emt 00:08:28]} Bxf5 {[%clk 00:24:03]} {[%emt
00:02:33]} 20. Qxf5 {[%clk 00:12:12]} {[%emt 00:02:12]} Qe8 {[%clk 00:20:26]}
{[%emt 00:04:07]} 21. Qg4 {[%clk 00:11:28]} {[%emt 00:01:14]} Kh8 {[%clk
00:19:44]} {[%emt 00:01:13]} 22. Bb3 {[%clk 00:10:56]} {[%emt 00:01:02]} f5
{[%clk 00:17:35]} {[%emt 00:02:38]} 23. exf5 {[%clk 00:09:06]} {[%emt
00:02:20]} Nf6 {[%clk 00:17:45]} {[%emt 00:00:19]} 24. Qh3 {[%clk 00:04:32]}
{[%emt 00:05:05]} Qh5 {[%clk 00:15:19]} {[%emt 00:02:57]} 25. dxe5 {[%clk
00:04:20]} {[%emt 00:00:42]} dxe5 {[%clk 00:14:21]} {[%emt 00:01:27]} 26. Bxa7
{[%clk 00:04:21]} {[%emt 00:00:27]} Rxa7 {[%clk 00:14:46]} {[%emt 00:00:07]} 27.
Rxe5 {[%clk 00:04:22]} {[%emt 00:00:30]} Ng4 {[%clk 00:14:58]} {[%emt
00:00:18]} 28. Bd1 {[%clk 00:04:23]} {[%emt 00:00:29]} 1-0

[Event "Klubbmästerskap 2025 Tisdag"]
[Site "Linköping, Sweden"]
[Date "2025.04.08"]
[Round "9.3"]
[White "Andersson, Mats 1960"]
[Black "Carlsson, Ingvar"]
[Result "1-0"]
[TimeControl "90 min + 30 sec/move"]
[WhiteTitle "FM"]
[WhiteElo "2263"]
[BlackElo "1996"]

1. c4 {[%clk 01:30:54]} {[%emt 00:00:04]} f5 {[%clk 01:30:25]} {[%emt
00:00:36]} 2. Nf3 {[%clk 01:31:06]} {[%emt 00:00:17]} Nf6 {[%clk 01:30:32]}
{[%emt 00:00:24]} 3. g3 {[%clk 01:31:09]} {[%emt 00:00:27]} d6 {[%clk
01:30:48]} {[%emt 00:00:14]} 4. Bg2 {[%clk 01:31:00]} {[%emt 00:00:38]} e5
{[%clk 01:30:41]} {[%emt 00:00:37]} 5. b4 {[%clk 01:30:01]} {[%emt 00:01:30]}
g6 {[%clk 01:26:08]} {[%emt 00:05:03]} 6. Bb2 {[%clk 01:29:52]} {[%emt
00:00:38]} Bg7 {[%clk 01:26:31]} {[%emt 00:00:07]} 7. O-O {[%clk 01:29:30]}
{[%emt 00:00:52]} O-O {[%clk 01:26:37]} {[%emt 00:00:25]} 8. d3 {[%clk
01:29:44]} {[%emt 00:00:16]} a5 {[%clk 01:19:50]} {[%emt 00:07:17]} 9. a3
{[%clk 01:20:20]} {[%emt 00:09:54]} axb4 {[%clk 00:58:33]} {[%emt 00:21:47]} 10.
axb4 {[%clk 01:19:56]} {[%emt 00:00:52]} Rxa1 {[%clk 00:58:59]} {[%emt
00:00:06]} 11. Bxa1 {[%clk 01:20:16]} {[%emt 00:00:10]} h6 {[%clk 00:53:59]}
{[%emt 00:05:30]} 12. Nc3 {[%clk 01:18:52]} {[%emt 00:01:54]} g5 {[%clk
00:53:40]} {[%emt 00:00:49]} 13. c5 {[%clk 01:09:52]} {[%emt 00:09:30]} Qe8
{[%clk 00:50:29]} {[%emt 00:03:41]} 14. cxd6 {[%clk 01:07:52]} {[%emt
00:02:31]} cxd6 {[%clk 00:50:42]} {[%emt 00:00:16]} 15. Nd2 {[%clk 01:06:45]}
{[%emt 00:01:35]} Nc6 {[%clk 00:41:09]} {[%emt 00:10:04]} 16. Nc4 {[%clk
00:57:00]} {[%emt 00:10:15]} Qe7 {[%clk 00:40:38]} {[%emt 00:01:01]} 17. b5
{[%clk 00:51:51]} {[%emt 00:05:38]} Nd8 {[%clk 00:27:10]} {[%emt 00:13:58]} 18.
Qb3 {[%clk 00:44:43]} {[%emt 00:07:39]} Be6 {[%clk 00:26:32]} {[%emt 00:01:08]}
19. Qb4 {[%clk 00:45:01]} {[%emt 00:00:12]} Nf7 {[%clk 00:25:49]} {[%emt
00:01:13]} 20. Bb2 {[%clk 00:42:19]} {[%emt 00:03:11]} Rd8 {[%clk 00:14:16]}
{[%emt 00:12:04]} 21. Ra1 {[%clk 00:35:59]} {[%emt 00:06:49]} Bf8 {[%clk
00:12:30]} {[%emt 00:02:17]} 22. Ra7 {[%clk 00:30:02]} {[%emt 00:06:24]} Qe8
{[%clk 00:11:53]} {[%emt 00:01:10]} 23. Qa4 {[%clk 00:21:31]} {[%emt 00:09:01]}
d5 {[%clk 00:11:00]} {[%emt 00:01:22]} 24. Na5 {[%clk 00:20:45]} {[%emt
00:01:16]} b6 {[%clk 00:05:11]} {[%emt 00:06:20]} 25. Nc6 {[%clk 00:21:00]}
{[%emt 00:00:15]} Rc8 {[%clk 00:05:15]} {[%emt 00:00:27]} 26. Ba3 {[%clk
00:20:09]} {[%emt 00:01:21]} Nd6 {[%clk 00:01:42]} {[%emt 00:04:04]} 27. h3
{[%clk 00:13:30]} {[%emt 00:07:09]} Bf7 {[%clk 00:01:23]} {[%emt 00:00:49]} 28.
Bxd6 {[%clk 00:12:21]} {[%emt 00:01:38]} Bxd6 {[%clk 00:01:48]} {[%emt
00:00:05]} 29. Qa6 {[%clk 00:12:23]} {[%emt 00:00:27]} d4 {[%clk 00:00:54]}
{[%emt 00:01:25]} 30. Na4 {[%clk 00:12:33]} {[%emt 00:00:20]} Nd5 {[%clk
00:00:37]} {[%emt 00:00:47]} 31. Nxb6 {[%clk 00:12:38]} {[%emt 00:00:25]} Nxb6
{[%clk 00:00:35]} {[%emt 00:00:33]} 32. Qxb6 {[%clk 00:13:02]} {[%emt
00:00:06]} Qf8 {[%clk 00:00:35]} {[%emt 00:00:30]} 33. Qa6 {[%clk 00:11:52]}
{[%emt 00:01:38]} Bc5 {[%clk 00:00:38]} {[%emt 00:00:28]} 34. b6 {[%clk
00:11:41]} {[%emt 00:00:40]} 1-0

[Event "Klubbmästerskap 2025 Tisdag"]
[Site "Linköping, Sweden"]
[Date "2025.04.08"]
[Round "9.4"]
[White "Olsson, Simon"]
[Black "Rogoz, Vladyslav"]
[Result "1-0"]
[TimeControl "90 min + 30 sec/move"]
[WhiteElo "2075"]
[BlackElo "2099"]

1. d4 {[%clk 01:30:57]} {[%emt 00:00:02]} e6 {[%clk 01:30:37]} {[%emt
00:00:23]} 2. c4 {[%clk 01:31:21]} {[%emt 00:00:06]} b6 {[%clk 01:30:56]}
{[%emt 00:00:11]} 3. Nf3 {[%clk 01:29:29]} {[%emt 00:02:22]} Bb7 {[%clk
01:30:55]} {[%emt 00:00:32]} 4. g3 {[%clk 01:29:53]} {[%emt 00:00:06]} f5
{[%clk 01:30:55]} {[%emt 00:00:30]} 5. Bg2 {[%clk 01:30:10]} {[%emt 00:00:12]}
Nf6 {[%clk 01:30:48]} {[%emt 00:00:37]} 6. Nc3 {[%clk 01:29:47]} {[%emt
00:00:54]} Bb4 {[%clk 01:31:08]} {[%emt 00:00:09]} 7. Bd2 {[%clk 01:30:04]}
{[%emt 00:00:12]} O-O {[%clk 01:30:43]} {[%emt 00:00:56]} 8. O-O {[%clk
01:30:26]} {[%emt 00:00:09]} d6 {[%clk 01:26:14]} {[%emt 00:04:58]} 9. Ng5
{[%clk 01:23:02]} {[%emt 00:07:54]} Bxg2 {[%clk 01:26:23]} {[%emt 00:00:21]} 10.
Kxg2 {[%clk 01:23:25]} {[%emt 00:00:07]} Bxc3 {[%clk 01:23:25]} {[%emt
00:03:28]} 11. Bxc3 {[%clk 01:20:22]} {[%emt 00:03:33]} Re8 {[%clk 01:23:15]}
{[%emt 00:00:39]} 12. d5 {[%clk 01:14:29]} {[%emt 00:06:24]} Nxd5 {[%clk
01:20:24]} {[%emt 00:03:20]} 13. Nxe6 {[%clk 01:13:38]} {[%emt 00:01:22]} Nxc3
{[%clk 01:20:37]} {[%emt 00:00:17]} 14. bxc3 {[%clk 01:13:45]} {[%emt
00:00:23]} Rxe6 {[%clk 01:12:50]} {[%emt 00:08:17]} 15. Qd5 {[%clk 01:13:58]}
{[%emt 00:00:17]} Qe8 {[%clk 01:13:04]} {[%emt 00:00:16]} 16. Qxa8 {[%clk
01:12:43]} {[%emt 00:01:45]} Qc6+ {[%clk 01:11:54]} {[%emt 00:01:40]} 17. Qxc6
{[%clk 01:12:35]} {[%emt 00:00:38]} Nxc6 {[%clk 01:12:20]} {[%emt 00:00:04]} 18.
e3 {[%clk 01:10:07]} {[%emt 00:02:58]} Re4 {[%clk 01:11:17]} {[%emt 00:01:33]}
19. c5 {[%clk 01:10:28]} {[%emt 00:00:10]} dxc5 {[%clk 01:11:26]} {[%emt
00:00:21]} 20. Rfd1 {[%clk 01:10:23]} {[%emt 00:00:34]} Re7 {[%clk 01:11:08]}
{[%emt 00:00:47]} 21. Rd5 {[%clk 01:09:33]} {[%emt 00:01:20]} g6 {[%clk
01:11:06]} {[%emt 00:00:32]} 22. h3 {[%clk 00:59:31]} {[%emt 00:10:32]} Kf7
{[%clk 01:11:03]} {[%emt 00:00:33]} 23. g4 {[%clk 00:58:24]} {[%emt 00:01:38]}
Ke6 {[%clk 01:10:30]} {[%emt 00:01:02]} 24. Rad1 {[%clk 00:55:56]} {[%emt
00:02:58]} fxg4 {[%clk 01:10:42]} {[%emt 00:00:20]} 25. hxg4 {[%clk 00:56:16]}
{[%emt 00:00:09]} Ne5 {[%clk 01:11:03]} {[%emt 00:00:08]} 26. Kg3 {[%clk
00:55:42]} {[%emt 00:01:05]} Nf7 {[%clk 01:09:59]} {[%emt 00:01:34]} 27. f4
{[%clk 00:35:03]} {[%emt 00:21:09]} Kf6 {[%clk 01:09:30]} {[%emt 00:00:59]} 28.
g5+ {[%clk 00:34:40]} {[%emt 00:00:53]} Ke6 {[%clk 01:07:36]} {[%emt 00:02:24]}
29. Kf3 {[%clk 00:34:06]} {[%emt 00:01:04]} c6 {[%clk 01:06:35]} {[%emt
00:01:31]} 30. R5d2 {[%clk 00:34:04]} {[%emt 00:00:32]} b5 {[%clk 01:02:46]}
{[%emt 00:04:19]} 31. e4 {[%clk 00:18:06]} {[%emt 00:16:29]} a5 {[%clk
01:01:54]} {[%emt 00:01:22]} 32. e5 {[%clk 00:14:52]} {[%emt 00:03:44]} c4
{[%clk 00:59:47]} {[%emt 00:02:37]} 33. Ke4 {[%clk 00:13:51]} {[%emt 00:01:31]}
c5 {[%clk 00:59:05]} {[%emt 00:01:12]} 34. a3 {[%clk 00:03:35]} {[%emt
00:10:47]} b4 {[%clk 00:57:58]} {[%emt 00:01:36]} 35. axb4 {[%clk 00:03:38]}
{[%emt 00:00:27]} axb4 {[%clk 00:58:08]} {[%emt 00:00:20]} 36. Ra2 {[%clk
00:02:45]} {[%emt 00:01:23]} Rb7 {[%clk 00:58:08]} {[%emt 00:00:29]} 37. Ra6+
{[%clk 00:02:11]} {[%emt 00:01:04]} Ke7 {[%clk 00:58:31]} {[%emt 00:00:07]} 38.
Rc6 {[%clk 00:02:24]} {[%emt 00:00:18]} bxc3 {[%clk 00:55:27]} {[%emt
00:03:34]} 39. Rxc5 {[%clk 00:02:52]} {[%emt 00:00:03]} c2 {[%clk 00:55:02]}
{[%emt 00:00:54]} 40. Rc1 {[%clk 00:03:16]} {[%emt 00:00:06]} Rb4 {[%clk
00:55:10]} {[%emt 00:00:22]} 41. Rxc2 {[%clk 00:02:53]} {[%emt 00:00:53]} c3+
{[%clk 00:55:28]} {[%emt 00:00:12]} 42. Ke3 {[%clk 00:01:51]} {[%emt 00:01:32]}
h6 {[%clk 00:55:51]} {[%emt 00:00:07]} 43. Rc7+ {[%clk 00:01:07]} {[%emt
00:01:13]} Ke6 {[%clk 00:55:27]} {[%emt 00:00:55]} 44. R2xc3 {[%clk 00:01:26]}
{[%emt 00:00:12]} hxg5 {[%clk 00:55:28]} {[%emt 00:00:28]} 45. R3c6+ {[%clk
00:01:15]} {[%emt 00:00:41]} Kd5 {[%clk 00:55:54]} {[%emt 00:00:04]} 46. Rc5+
{[%clk 00:01:26]} {[%emt 00:00:18]} Ke6 {[%clk 00:56:10]} {[%emt 00:00:13]} 47.
R7c6+ {[%clk 00:01:34]} {[%emt 00:00:23]} Ke7 {[%clk 00:56:22]} {[%emt
00:00:18]} 48. fxg5 {[%clk 00:01:12]} {[%emt 00:00:53]} Nxg5 {[%clk 00:55:19]}
{[%emt 00:01:32]} 49. Rxg6 {[%clk 00:01:38]} {[%emt 00:00:06]} Rb3+ {[%clk
00:54:55]} {[%emt 00:00:53]} 50. Ke2 {[%clk 00:02:06]} {[%emt 00:00:01]} Rb2+
{[%clk 00:54:39]} {[%emt 00:00:47]} 51. Kd1 {[%clk 00:01:56]} {[%emt 00:00:40]}
Rd2+ {[%clk 00:45:18]} {[%emt 00:09:51]} 52. Kxd2 {[%clk 00:02:11]} {[%emt
00:00:15]} Ne4+ {[%clk 00:45:43]} {[%emt 00:00:05]} 53. Ke3 {[%clk 00:02:25]}
{[%emt 00:00:16]} Nxc5 {[%clk 00:46:08]} {[%emt 00:00:04]} 54. Rc6 {[%clk
00:02:33]} {[%emt 00:00:22]} Ne6 {[%clk 00:46:20]} {[%emt 00:00:18]} 55. Ke4
{[%clk 00:02:50]} {[%emt 00:00:13]} Nd8 {[%clk 00:46:29]} {[%emt 00:00:21]} 56.
Ra6 {[%clk 00:02:25]} {[%emt 00:00:55]} Ne6 {[%clk 00:45:37]} {[%emt 00:01:23]}
57. Ra7+ {[%clk 00:02:45]} {[%emt 00:00:10]} Ke8 {[%clk 00:46:02]} {[%emt
00:00:05]} 58. Kd5 {[%clk 00:02:50]} {[%emt 00:00:24]} Ng5 {[%clk 00:44:45]}
{[%emt 00:01:47]} 59. Rg7 {[%clk 00:02:38]} {[%emt 00:00:43]} Nf7 {[%clk
00:44:52]} {[%emt 00:00:23]} 60. Rxf7 {[%clk 00:02:15]} {[%emt 00:00:53]} Kxf7
{[%clk 00:45:01]} {[%emt 00:00:22]} 61. Kd6 {[%clk 00:02:44]} Ke8 {[%clk
00:43:41]} {[%emt 00:01:50]} 62. Ke6 {[%clk 00:03:05]} {[%emt 00:00:08]} 1-0

[Event "Klubbmästerskap 2025 Tisdag"]
[Site "Linköping, Sweden"]
[Date "2025.04.08"]
[Round "9.5"]
[White "Martinelle, Christoffer"]
[Black "Andersson, Fredrik 1969"]
[Result "1/2-1/2"]
[TimeControl "90 min + 30 sec/move"]
[WhiteElo "1765"]
[BlackElo "1746"]

1. c4 {[%clk 01:30:54]} {[%emt 00:00:04]} e5 {[%clk 01:30:57]} {[%emt
00:00:04]} 2. g3 {[%clk 01:31:10]} {[%emt 00:00:14]} Nf6 {[%clk 01:31:00]}
{[%emt 00:00:26]} 3. Bg2 {[%clk 01:31:21]} {[%emt 00:00:19]} d5 {[%clk
01:30:26]} {[%emt 00:01:04]} 4. cxd5 {[%clk 01:31:00]} {[%emt 00:00:51]} Nxd5
{[%clk 01:30:46]} {[%emt 00:00:10]} 5. Nf3 {[%clk 01:31:01]} {[%emt 00:00:30]}
Nc6 {[%clk 01:30:37]} {[%emt 00:00:39]} 6. O-O {[%clk 01:31:02]} {[%emt
00:00:29]} Nb6 {[%clk 01:27:26]} {[%emt 00:03:42]} 7. Nc3 {[%clk 01:29:48]}
{[%emt 00:01:43]} Be7 {[%clk 01:25:28]} {[%emt 00:02:28]} 8. d3 {[%clk
01:29:08]} {[%emt 00:01:10]} O-O {[%clk 01:22:13]} {[%emt 00:03:45]} 9. Be3
{[%clk 01:28:19]} {[%emt 00:01:19]} Be6 {[%clk 01:18:00]} {[%emt 00:04:44]} 10.
Rc1 {[%clk 01:26:26]} {[%emt 00:02:23]} f6 {[%clk 01:16:12]} {[%emt 00:02:18]}
11. a3 {[%clk 01:22:45]} {[%emt 00:04:11]} Qc8 {[%clk 01:14:49]} {[%emt
00:01:53]} 12. b4 {[%clk 01:15:10]} {[%emt 00:08:05]} Bh3 {[%clk 01:12:47]}
{[%emt 00:02:32]} 13. Qb3+ {[%clk 01:13:24]} {[%emt 00:02:16]} Kh8 {[%clk
01:12:48]} {[%emt 00:00:29]} 14. b5 {[%clk 01:04:05]} {[%emt 00:09:49]} Bxg2
{[%clk 01:10:43]} {[%emt 00:02:35]} 15. Kxg2 {[%clk 01:04:27]} {[%emt
00:00:07]} Nd8 {[%clk 01:07:26]} {[%emt 00:03:47]} 16. a4 {[%clk 01:02:12]}
{[%emt 00:02:46]} Nd7 {[%clk 00:57:50]} {[%emt 00:10:06]} 17. Nd5 {[%clk
00:58:10]} {[%emt 00:04:32]} Bd6 {[%clk 00:57:48]} {[%emt 00:00:32]} 18. Nd2
{[%clk 00:57:14]} {[%emt 00:01:26]} b6 {[%clk 00:55:00]} {[%emt 00:03:18]} 19.
Ne4 {[%clk 00:49:09]} {[%emt 00:08:35]} Nc5 {[%clk 00:47:38]} {[%emt 00:07:52]}
20. Bxc5 {[%clk 00:47:03]} {[%emt 00:02:36]} bxc5 {[%clk 00:47:19]} {[%emt
00:00:50]} 21. Nxc5 {[%clk 00:46:57]} {[%emt 00:00:36]} Qg4 {[%clk 00:47:23]}
{[%emt 00:00:26]} 22. f3 {[%clk 00:44:38]} {[%emt 00:02:49]} Qg6 {[%clk
00:46:20]} {[%emt 00:01:32]} 23. Na6 {[%clk 00:38:57]} {[%emt 00:06:11]} Ne6
{[%clk 00:43:24]} {[%emt 00:03:26]} 24. Kh1 {[%clk 00:31:03]} {[%emt 00:08:24]}
e4 {[%clk 00:38:21]} {[%emt 00:05:33]} 25. f4 {[%clk 00:23:28]} {[%emt
00:08:06]} Nd4 {[%clk 00:35:05]} {[%emt 00:03:45]} 26. Qd1 {[%clk 00:17:53]}
{[%emt 00:06:04]} Nf5 {[%clk 00:33:34]} {[%emt 00:02:02]} 27. Qe1 {[%clk
00:15:26]} {[%emt 00:02:58]} exd3 {[%clk 00:32:42]} {[%emt 00:01:21]} 28. exd3
{[%clk 00:14:58]} {[%emt 00:00:58]} Rae8 {[%clk 00:31:57]} {[%emt 00:01:15]} 29.
Qf2 {[%clk 00:15:00]} {[%emt 00:00:29]} Qh5 {[%clk 00:30:27]} {[%emt 00:02:00]}
30. Rce1 {[%clk 00:10:30]} {[%emt 00:05:00]} Nxg3+ {[%clk 00:29:32]} {[%emt
00:01:25]} 31. Qxg3 {[%clk 00:09:35]} {[%emt 00:01:25]} Qxd5+ {[%clk 00:29:56]}
{[%emt 00:00:06]} 32. Kg1 {[%clk 00:08:32]} {[%emt 00:01:33]} Qd4+ {[%clk
00:28:33]} {[%emt 00:01:53]} 33. Qf2 {[%clk 00:06:37]} {[%emt 00:02:25]} Qxf2+
{[%clk 00:27:01]} {[%emt 00:02:01]} 34. Kxf2 {[%clk 00:06:50]} {[%emt
00:00:17]} Bxf4 {[%clk 00:27:11]} {[%emt 00:00:20]} 35. h3 {[%clk 00:05:48]}
{[%emt 00:01:33]} Bd6 {[%clk 00:26:31]} {[%emt 00:01:09]} 36. Rc1 {[%clk
00:05:55]} {[%emt 00:00:22]} Rf7 {[%clk 00:25:34]} {[%emt 00:01:28]} 37. Rc6
{[%clk 00:05:54]} {[%emt 00:00:32]} g5 {[%clk 00:23:45]} {[%emt 00:02:19]} 38.
Rfc1 {[%clk 00:05:07]} {[%emt 00:01:15]} Ree7 {[%clk 00:23:47]} {[%emt
00:00:29]} 39. Nb8 {[%clk 00:04:36]} {[%emt 00:01:01]} 1/2-1/2